Cogmind - Beta 9.2 @@@ ROGUE MODE // 2019.11.23 @ 02:18:50 Player: Suslik Result: Destroyed by Y-45 Defender with Beam Rifle Performance ------------- Evolutions (0) 0 Regions Visited (2) 400 Robots Destroyed (31) 155 Value Destroyed (663) 663 Prototype IDs (2) 40 Alien Tech Used (0) 0 Bonus (0) 0 TOTAL SCORE: 1258 Bonus ------- None Cogmind --------- Core Integrity 0/250 Matter 254/300 Energy 124/250 System Corruption 0% Temperature Cool (164) Movement Rolling (100) Ox1 Location -10/Mines Parts ------- > --- POWER (1) -------- Ion Engine > --- PROPULSION (2) --- Armored Wheel Armored Wheel > --- UTILITY (2) ------ Large Storage Unit Large Storage Unit > --- WEAPON (2) ------- EM Pulse Gun Spread Laser > --- INVENTORY (16) --- Armored Wheel Armored Wheel Cooling System Large Storage Unit High-capacity Matter Pod (200) Improved Light Armor Plating Light Assault Rifle Grenade Launcher Datajack Mining Claw Peak State ------------ > --- POWER ------------ Light Nuclear Core > --- PROPULSION ------- Armored Wheel Armored Wheel > --- UTILITY ---------- Large Storage Unit Large Storage Unit > --- WEAPON ----------- Spread Laser Light Cannon > --- INVENTORY -------- Ion Engine Armored Wheel Armored Wheel Armored Wheel Cooling System Large Storage Unit High-capacity Matter Pod EM Pulse Gun Spread Laser Spread Laser Light Assault Rifle Light Assault Rifle Light Assault Rifle Grenade Launcher Datajack Mining Claw [Rating: 14] Favorites ----------- Power Light Ion Engine Engine Light Ion Engine Power Core Light Nuclear Core Propulsion Light Treads Treads Light Treads Leg Aluminum Leg Wheel Armored Wheel Utility Large Storage Unit Storage Large Storage Unit Weapon Small Laser Energy Gun Small Laser Ballistic Gun Light Assault Rifle Ballistic Cannon Light Cannon Launcher Grenade Launcher Build | -11 -10 -10 ------- Run | Scr Mat Min Slots Evolved . | . . . Power . | . . . Propulsion . | . . . Utility . | . . . Weapon . | . . . Parts Attached 24 | 1 9 14 Power 4 | . 1 3 Engine 3 | . 1 2 Core 1 | . . 1 Reactor . | . . . Propulsion 6 | . 4 2 Treads 2 | . 2 . Leg . | . . . Wheel 4 | . 2 2 Hover . | . . . Flight . | . . . Utility 3 | 1 2 . Device . | . . . Storage 3 | 1 2 . Processor . | . . . Hackware . | . . . Protection . | . . . Artifact . | . . . Weapon 11 | . 2 9 Energy Gun 4 | . . 4 Energy Cannon . | . . . Ballistic Gun 2 | . 1 1 Ballistic Cannon 3 | . 1 2 Launcher 2 | . . 2 Special Weapon . | . . . Impact Weapon . | . . . Slashing Weapon . | . . . Piercing Weapon . | . . . Special Melee Weapon . | . . . Unidentified Prototypes . | . . . Parts Lost 12 | . 3 9 Power 2 | . . 2 Propulsion 3 | . 1 2 Utility . | . . . Weapon 7 | . 2 5 Highest Loss Streak 6 | . 2 6 Average Slot Usage (%) 99 | . 99 99 Engine 12 | . 14 9 Core 1 | . . 4 Treads 14 | . 21 . Leg 2 | . 3 . Wheel 11 | . 2 27 Storage 28 | . 28 28 Energy Gun 14 | . 14 13 Ballistic Gun 7 | . 10 . Ballistic Cannon 6 | . 2 13 Naked Turns . | . . . Heaviest Build 43 | 14 39 43 Greatest Support 40 | 20 40 24 Greatest Overweight (x) 3 | . 3 3 Average Overweight (x) . | . . 1 Largest Inventory Capacity 16 | 8 16 16 Average Capacity 15 | 6 15 16 Most Carried 16 | 6 15 16 Average Carried 11 | 6 8 15 Final Capacity 16 | 8 16 16 Final Carried 15 | 6 15 10 Class Distribution -------------------- 100% | Mutant Dominant Class ---------------- Mutant | -10/Materials Mutant | -10/Mines Resources | -11 -10 -10 ----------- Run | Scr Mat Min Matter Collected 695 | 200 307 188 Remotely . | . . . Salvage Created 675 | 63 441 171 Parts 44 | 3 17 24 Haulers Intercepted . | . . . Recyclers Shooed . | . . . Parts Field Recycled . | . . . Retrieved Matter . | . . . Parts Self-Destructed . | . . . Prevented . | . . . Kills | -11 -10 -10 ------- Run | Scr Mat Min Combat Hostiles Destroyed 29 | . 14 15 Guns 19 | . 12 7 Cannons 5 | . 2 3 AOE 5 | . . 5 Classes Destroyed 6 | 1 2 3 Worker 1 | . . 1 Recycler 1 | 1 . . Swarmer 12 | . 3 9 Grunt 13 | . 11 2 Sentry 1 | . . 1 Assembled 3 | . . 3 Best Kill Streak 6 | 1 3 6 Combat Bots Only 5 | . 3 5 Max Kills in Single Turn 3 | 1 1 3 Gunslinging . | . . . Exploded 2 | . . 2 Melee . | . . . Uniques/NPCs Destroyed . | . . . Combat | -11 -10 -10 -------- Run | Scr Mat Min Damage Taken 1537 | . 656 881 Core 258 | . 97 161 Absorbed by Shields . | . . . Core Remaining (%) 100 | 100 . . Volleys Fired 82 | 3 44 35 Largest 2 | 2 2 2 Hottest 100 | 90 90 100 Shots Fired 158 | 6 87 65 Gun 127 | 6 82 39 Cannon 28 | . 5 23 Launcher 3 | . . 3 Special . | . . . Kinetic 64 | . 32 32 Thermal 91 | 6 55 30 Explosive 3 | . . 3 Electromagnetic . | . . . Robot Hit Streak 10 | 4 10 10 Robot Miss Streak 14 | 1 4 14 Penetration Max . | . . . Secondary Targets 4 | . 3 1 Max Gunslinging Chain 1 | . 1 1 Shots Hit Robots 109 | 4 59 46 Core Hits 69 | 2 30 37 Critical Hits . | . . . Critical Kills . | . . . Critical Parts Destroyed . | . . . Melee Attacks . | . . . Impact . | . . . Slashing . | . . . Piercing . | . . . Sneak Attacks . | . . . Combat Hostiles . | . . . Follow-up Attacks . | . . . Damage Inflicted 1584 | 47 768 769 Guns 1017 | 47 658 312 Cannons 167 | . 66 101 Explosions 298 | . . 298 Melee . | . . . Ramming 102 | . 44 58 Kinetic 342 | . 211 131 Thermal 842 | 47 513 282 Explosive 298 | . . 298 Electromagnetic . | . . . Impact . | . . . Slashing . | . . . Piercing . | . . . Highest Corruption . | . . . Average Corruption . | . . . Corruption Purged . | . . . Overload Shots . | . . . Overflow Damage 35 | . . 35 Projectiles . | . . . Explosions 35 | . . 35 Melee . | . . . Knockbacks 4 | . 1 3 Impact . | . . . Kinetic 4 | . 1 3 Secondary . | . . . Self-Inflicted Damage 57 | . 3 54 Shots 1 | . . 1 Rammed 11 | . 8 3 Targets Rammed 11 | . 8 3 Kicked . | . . . Crushed . | . . . Highest Temperature 383 | 90 312 383 Average Temperature 118 | 48 107 138 Received Heat Transfer 564 | . 348 216 Effects 5 | . 3 2 Shutdowns 1 | . . 1 Energy Bleed 1 | . . 1 Interference 3 | . 3 . Siege Activations . | . . . Robots Corrupted . | . . . Combat Hostiles . | . . . Parts Fried . | . . . Impact Corruptions . | . . . Robots Melted . | . . . Combat Hostiles . | . . . Parts Melted 6 | 1 5 . Heat Transferred 1770 | 124 1281 365 Parts Sabotaged . | . . . Parts Stolen . | . . . Parts Stripped . | . . . Power Chain Reactions . | . . . Missiles Intercepted . | . . . Alert | -11 -10 -10 ------- Run | Scr Mat Min Peak Influence 220 | 5 220 155 Average Influence 75 | 3 73 83 Maximum Alert Level 1 | . 1 . Low Security (%) 94 | 100 91 100 Level 1 5 | . 8 . Level 2 . | . . . Level 3 . | . . . Level 4 . | . . . Level 5 . | . . . High Security . | . . . Max Security . | . . . Squads Dispatched 4 | . 4 . Investigation 4 | . 4 . Extermination . | . . . Reinforcement . | . . . Assault . | . . . Garrison . | . . . Intercept . | . . . Construction Impeded . | . . . Haulers Reinforced . | . . . Stealth | -11 -10 -10 --------- Run | Scr Mat Min Distress Signals 1 | . 1 . Communications Jammed . | . . . Distress Signals . | . . . Times Spotted 37 | . 22 15 Peak Tracking Total 4 | . 4 3 Tactical Retreats . | . . . Traps | -11 -10 -10 ------- Run | Scr Mat Min Traps Triggered 2 | . 2 . Indirectly . | . . . Trap Hack Attempts . | . . . Triggered . | . . . Disarmed . | . . . Reprogrammed . | . . . Reused . | . . . Traps Extracted . | . . . Installed . | . . . Triggered . | . . . Machines | -11 -10 -10 ---------- Run | Scr Mat Min Machines Disabled 1 | . 1 . Max in Single Turn 1 | . 1 . Machines Sabotaged . | . . . Garrisons Compromised . | . . . Overloaded Fab Kills . | . . . Fab Network Shutdowns . | . . . Hacking | -11 -10 -10 --------- Run | Scr Mat Min Machines Accessed 6 | . 6 . Terminals 4 | . 4 . Fabricators . | . . . Repair Stations . | . . . Recycling Units 2 | . 2 . Scanalyzers . | . . . Garrison Access . | . . . Total Hacks 12 | . 12 . Successful 5 | . 5 . Failed 7 | . 7 . Catastrophic . | . . . Database Lockouts . | . . . Manual 10 | . 10 . Terminals 8 | . 8 . Fabricators . | . . . Repair Stations . | . . . Recycling Units 4 | . 4 . Scanalyzers . | . . . Garrison Access . | . . . Terminal Hacks 3 | . 3 . Part Schematic 1 | . 1 . Prototype ID Bank 1 | . 1 . Hauler Manifests 1 | . 1 . Fabricator Hacks . | . . . Repair Station Hacks . | . . . Recycling Unit Hacks . | . . . Scanalyzer . | . . . Garrison Access Hacks . | . . . Unauthorized Hacks 6 | . 6 . Terminals . | . . . Fabricators . | . . . Repair Stations . | . . . Recycling Units 2 | . 2 . Tunnel 2 | . 2 . Scanalyzers . | . . . Garrison Access . | . . . Data Cores Recovered . | . . . Used . | . . . Hacking Detections 5 | . 5 . Full Trace Events . | . . . Feedback Events . | . . . Feedback Blocked . | . . . Robot Schematics Acquired . | . . . Robots Built . | . . . Matter . | . . . Time . | . . . Total Robot Build Rating . | . . . Part Schematics Acquired 1 | . 1 . Parts Built . | . . . Matter . | . . . Time . | . . . Total Part Build Rating . | . . . Parts Repaired . | . . . Time . | . . . Parts Recycled . | . . . Recycled Matter . | . . . Retrieved Matter . | . . . Retrieved Components . | . . . Parts Scanalyzed . | . . . Part Schematics Acquired . | . . . Parts Damaged . | . . . Bothacking | -11 -10 -10 ------------ Run | Scr Mat Min Used RIF Installer . | . . . Robots Hacked . | . . . Non-combat . | . . . Combat . | . . . Robot Hacks Applied . | . . . Relay Couplers Released . | . . . Robots Rewired . | . . . Allies Hacked . | . . . Hacks Repelled . | . . . Allies | -11 -10 -10 -------- Run | Scr Mat Min Total Allies . | . . . Largest Group . | . . . Highest-Rated Group . | . . . Highest-Rated Ally . | . . . Total Orders . | . . . Ally Attacks . | . . . Total Damage . | . . . Kills . | . . . Allies Corrupted . | . . . Allies Melted . | . . . Intel | -11 -10 -10 ------- Run | Scr Mat Min Robot Analysis Total . | . . . Derelict Logs Recovered . | . . . Drone Launches . | . . . Drone Recoveries . | . . . Exploration | -11 -10 -10 ------------- Run | Scr Mat Min Turns Passed 1745 | 27 1093 625 Spaces Moved 1095 | 14 616 465 Core . | . . . Treads 373 | . 373 . Legs 122 | 14 108 . Wheels 600 | . 135 465 Hover . | . . . Flight . | . . . Fastest Speed 100 | 120 120 100 Average Speed 125 | 120 144 100 Slowest Speed 160 | 120 160 120 Overloaded Moves . | . . . Propulsion Burnouts . | . . . Robots Hopped . | . . . Cave-ins Triggered . | . . . Exploration Rate (%) 64 | 3 99 90 Regions Visited 2 Branch Regions 1 Pre-discovered Areas 2 | . 2 . Known Exits Taken . | . . . Unknown Exits Taken 2 | 1 1 . Scrap Searched 1 | . . 1 Spaces Dug 14 | . . 14 Terrain Destroyed 24 | . . 24 Melee . | . . . Projectile . | . . . AOE 24 | . . 24 Actions | -11 -10 -10 --------- Run | Scr Mat Min Total 1312 | 17 736 559 Wait 71 | . 36 35 Move 1093 | 13 615 465 Hop . | . . . Pick Up 21 | . 16 5 Fast Attach 2 | 1 . 1 Attach 12 | . 3 9 Detach . | . . . Swap 10 | . 6 4 Drop 10 | . 8 2 Fire 82 | 3 44 35 Melee . | . . . Ram 4 | . 1 3 Kick . | . . . Crush 7 | . 7 . Escape Stasis . | . . . Rewire . | . . . Trap . | . . . Miscellaneous . | . . . Route ------- -11/Scrapyard -10/Materials (discovered 4 exits: [*Mat x3] / [*Min]) -10/Mines (discovered 1 exit: [*Mat]) History --------- Turn | Location | Event 10 | -11/Scrapyard | Discovered new exit (range 3) 28 | -11/Scrapyard | Entered Materials 307 | -10/Materials | Build established: Mutant 383 | -10/Materials | Discovered new exit (range 3) 601 | -10/Materials | Discovered new exit (range 7) 729 | -10/Materials | Discovered new exit (range 12) 1041 | -10/Materials | Discovered new exit (range 10) 1121 | -10/Materials | Entered Mines 1168 | -10/Mines | Lost 3 parts (1p1n1w) 1223 | -10/Mines | Assembled infested the area 1228 | -10/Mines | Assisted by a Guerilla fighting off Assembled 1285 | -10/Mines | Core integrity fell below 50% 1669 | -10/Mines | Discovered new exit (range 11) 1735 | -10/Mines | Core integrity fell below 20% 1746 | -10/Mines | Destroyed by Y-45 Defender with Beam Rifle Last Messages --------------- 01657_ R-06 Scavenger collects Cmb. Airjet. 01658_ U-05 Engineer lays Concrete. 01658_ Slammed into U-05 Engineer. 01658_ K-01 Serf collects debris. 01660_ U-05 Engineer lays Concrete. 01662_ U-05 Engineer builds a Wall. 01669_ EXIT=FOUND 01695_ S-10 Pest destroyed. 01695_ Spread Laser destroyed. 01695_ Destroyed Spread Laser. 01699_ Door malfunctions. 01702_ Acquired 27 matter. 01702_ Lgt. Cannon destroyed. 01709_ S-10 Pest destroyed. 01726_ Lgt. Nuclear Core destroyed. 01729_ Spread Laser destroyed. 01732_ Arm. Wheel destroyed. 01734_ Y-45 Defender destroyed. 01734_ Switching to secondary target: Y-45 Defender. 01743_ Lgt. Assault Rifle destroyed. Map ----- +----------------------------------------------------+ | ?## ####?????????????# ########???###### #????? | | ?# ##?????????#### ##???????#*#????? | | ??# ##???????## #######% ##??????# #????? | | ??## ##??????# #????# #?????##*####?? | | ???# #??????# #???## #?????# #?? | | ???# ##????## ##### #?????# #?? | | ???# #????# ## #?????# #?? | | ??## #????# ## ##?????# #?? | | ### #????## #######??????# #?? | | # ##????# ###??##????????# #?? | | ##???# #####???? "???????#######?? | | ### #???# #???????? !???????????????? | | ##?# ##??# #???????? !???????????????? | | ###??# ## #### #???????? ???????????????? | | #????## #### ## #?????###//###?????????????? | | #?????####?## #?????# #?????????????? | | #??????????# #?????# ##????????????? | | #??????????# ####?????# ?????????????? | | #??????????## #????????# ??????????????? | | #???????????## ##????????# ???????????????? | | #????????????####?????????# [ ????????????????? | | ##???###???????????????????# [%#????????????????? | | ????## #??????????????????# % #????????????????? | | ???## #?????????????????# * #????????????????? | | ???# !% #???????????######[%=#????????????????? | | ???# < *%###????????# @ !%*##????????????????? | | ????# %! ! ########## %!Y #?????????????????? | | ??????# % % %% %% ######?????????????????? | | ??????### % % #??????????????????????? | | ????????## %############??????????????????????? | | ?????????# #?????????????????????????????????? | | ?????????# #?????????????????????????????????? | | ######??##%= %#?????????????????????????????????? | | # ##?# ! %#?????????????????????????????????? | | % * #?# #?????????????????????????????????? | | [ % #?## #?????????????????????????????????? | | = #??### #?????????????????????????????????? | | ! ####### #?????????????????????????????????? | | ** %%%%% #?????????????????????????????????? | | % #?????????????????????????????????? | | =% = ######?????????????????????????????????? | | ######??????????????????????????????????????? | | ##???????????????????????????????????????????? | | ##????????????????????????????????????????????? | | ##?????????????????????????????????????????????? | | ##??????????????????????????????????????????????? | | ????????????????????????????????????????????????? | | ????????????????????????????????????????????????? | | ????????????????????????????????????????????????? | | ????????????????????????????????????????????????? | +----------------------------------------------------+ Best States ------------- Heat Dissipation 25 Energy Generation 14 Energy Capacity 250 Matter Stores 300 Matter Capacity 300 Sight Range 16 Terrain Scan Density 10 Evasion (%) 40 Recoil Reduction 2 Item Schematics ----------------- Hcp. Storage Unit | -10/Materials | Hacked Robot Schematics ------------------ None Fabricated ------------ Nothing Alien Tech Used ----------------- None Achievements -------------- None Challenges ------------ None Game ------ Seed ColdBattleMagmablaster Manual? 0 Play Time 00:14:16 Cumulative 211.2 hours Start 2019.11.23 @ 02:08:53 End 2019.11.23 @ 02:18:50 Sessions 1 Manual Loads 0 Difficulty Rogue Special Mode None Game No. 185 Rogue 175 Adventurer 10 Explorer 0 Win Type - Total 4 Types 3/0/0/1/0/0/0 Lore% 66 Gallery% 82 Achievement% 65 Wizard Run 0 Options --------- ASCII 0 Keyboard 1 Movement Numpad Keybinds 0 Fullscreen 2 Font 18/SmallcapsGlow Map View 76x50 Tactical HUD 1 Map Filters NONE Filters NONE Steam 1 RUN: fa93a687-f9b8-4838-8083-6e6692dfa7fe